bitfinex/quotes_SOLUSD_20240713
["timestamp","ask_amount","ask_price","bid_price","bid_amount"]
[1720875302807,45.0,140.96,140.88,22.4616]
[1720875302975,3.25287263,140.95,140.88,22.4616]
[1720875303176,3.25287263,140.94,140.88,22.4616]
[1720875303376,45.0,140.96,140.88,22.4616]
[1720875303578,3.25332112,140.95,140.88,22.4616]
[1720875303897,3.25332112,140.94,140.88,22.4616]
[1720875304081,45.0,140.96,140.88,22.4616]
[1720875304279,3.25332112,140.95,140.88,22.4616]
[1720875304500,3.25332112,140.94,140.88,22.4616]
[1720875304678,45.0,140.96,140.88,22.4616]
[1720875304879,3.25331953,140.95,140.88,22.4616]
[1720875305095,3.25331953,140.94,140.88,22.4616]
[1720875305292,3.25331953,140.95,140.88,22.4616]
[1720875305593,3.25332032,140.94,140.88,22.4616]
[1720875305978,45.0,140.96,140.88,22.4616]
[1720875306200,3.25305883,140.95,140.88,22.4616]
[1720875306394,45.0,140.96,140.88,22.4616]
[1720875306596,3.25283539,140.95,140.89,1.41944073]
[1720875306780,45.0,140.96,140.89,1.41944073]
[1720875306981,3.25272288,140.95,140.89,1.41944073]
[1720875307189,45.0,140.96,140.89,1.41944073]
[1720875307578,3.25272288,140.95,140.89,1.41944073]
[1720875307772,45.0,140.96,140.89,1.41939308]
[1720875307971,3.25272288,140.95,140.89,1.41939308]
[1720875308176,45.0,140.96,140.88,22.4616]
[1720875308604,3.25272455,140.95,140.89,1.41938645]
[1720875308791,45.0,140.96,140.89,1.41938645]
[1720875309101,3.25272375,140.95,140.89,1.41938645]
[1720875309299,45.0,140.96,140.89,1.41938645]
[1720875309492,3.25272375,140.95,140.89,1.41938645]
[1720875309800,45.0,140.96,140.89,1.41938645]
[1720875309987,3.25272375,140.95,140.88,22.4616]
[1720875310180,45.0,140.96,140.89,1.41941056]
[1720875310380,3.25272534,140.95,140.89,1.41941056]
[1720875310607,45.0,140.96,140.89,1.41941056]
[1720875310809,3.25307267,140.95,140.88,22.4616]
[1720875310979,3.25317884,140.94,140.88,22.4616]
[1720875311180,45.0,140.96,140.88,22.4616]
[1720875311402,3.25317806,140.95,140.88,22.4616]
[1720875311676,45.0,140.96,140.88,22.4616]
[1720875311894,3.25302246,140.95,140.88,22.4616]
[1720875312109,45.0,140.96,140.88,22.4616]
[1720875312298,3.25302326,140.95,140.88,22.4616]
[1720875312497,45.0,140.96,140.88,22.4616]
[1720875312699,3.25302326,140.95,140.88,22.4616]
[1720875312903,45.0,140.96,140.88,22.4616]
[1720875313110,3.25302246,140.95,140.88,22.4616]
[1720875313408,45.0,140.96,140.88,22.4616]
[1720875313586,3.25302246,140.95,140.88,22.4616]
[1720875313996,45.0,140.96,140.88,22.4616]
[1720875314316,3.25300897,140.95,140.88,22.4616]
[1720875314489,45.0,140.96,140.88,22.4616]
[1720875314812,3.25300897,140.95,140.88,22.4616]
[1720875314994,45.0,140.96,140.88,22.4616]
[1720875315313,3.25302246,140.95,140.88,22.4616]
[1720875315486,3.25302246,140.94,140.88,22.4616]
[1720875315679,48.25302246,140.94,140.83,22.4384]
[1720875315885,13.25302246,140.93,140.83,22.4384]
[1720875316102,48.25302246,140.92,140.83,22.4384]
[1720875316298,3.25302246,140.91,140.83,22.4384]
[1720875317085,45.0,140.92,140.83,22.4384]
[1720875317302,3.25513422,140.91,140.83,22.4384]
[1720875317509,3.25513422,140.9,140.83,22.4384]
[1720875317710,45.0,140.93,140.83,22.4384]
[1720875317909,3.25513502,140.92,140.83,22.4384]
[1720875318211,3.25513502,140.91,140.83,22.4384]
[1720875318410,3.25513502,140.9,140.83,22.4384]
[1720875318586,45.0,140.93,140.83,22.4384]
[1720875318786,3.25513502,140.92,140.83,22.4384]
[1720875319003,3.25513502,140.91,140.83,22.4384]
[1720875319202,3.25513502,140.9,140.83,22.4384]
[1720875319409,10.0,140.92,140.83,22.4384]
[1720875319612,48.25509775,140.91,140.83,22.4384]
[1720875319910,3.25509616,140.9,140.83,22.4384]
[1720875320511,45.0,140.91,140.83,22.4384]
[1720875320811,3.25513548,140.9,140.83,22.4384]
[1720875320981,45.0,140.91,140.83,22.4384]
[1720875321177,3.25513548,140.9,140.83,22.4384]
[1720875321488,3.25513548,140.89,140.83,22.4384]
[1720875321695,3.25513548,140.9,140.83,22.4384]
[1720875322007,3.2553824,140.89,140.83,22.4384]
[1720875322211,3.2553824,140.88,140.83,22.4384]
[1720875322704,3.2553824,140.9,140.83,22.4384]
[1720875323414,3.2553987,140.89,140.83,22.4384]
[1720875323604,45.0,140.91,140.83,22.4384]
[1720875323780,3.25554779,140.9,140.83,22.4384]
[1720875324107,45.0,140.91,140.83,22.4384]
[1720875324108,3.25554779,140.89,140.83,22.4384]
[1720875324310,3.25554779,140.9,140.83,22.4384]
[1720875327427,3.25556964,140.89,140.83,22.4384]
[1720875327591,45.0,140.91,140.83,22.4384]
[1720875327792,3.25557045,140.9,140.83,22.4384]
[1720875328111,3.25557045,140.89,140.83,22.4384]
[1720875328313,10.0,140.9,140.83,22.4384]
[1720875328521,48.255683,140.89,140.83,22.4384]
[1720875328688,3.25572047,140.88,140.83,22.4384]
[1720875328892,45.0,140.89,140.83,22.4384]
[1720875329211,3.25617021,140.88,140.8,6.5822]
[1720875329508,45.0,140.89,140.8,6.5822]
[1720875329693,3.25628587,140.88,140.8,6.5822]
[1720875329926,45.0,140.89,140.8,6.5822]
[1720875330124,3.25624839,140.88,140.8,6.5822]
[1720875330326,45.0,140.89,140.8,6.5822]
[1720875330741,3.25624758,140.88,140.8,6.5822]
[1720875331036,10.0,140.87,140.8,6.5822]
[1720875331234,48.2566799,140.86,140.8,6.5822]
[1720875331435,45.0,140.86,140.8,6.5822]
[1720875336520,10.0,140.85,140.79,15.0117]
[1720875336723,45.0,140.84,140.79,15.0117]
[1720875338424,45.0,140.84,140.76,21.5939]
[1720875347962,66.42,140.84,140.76,21.5939]
[1720875350656,69.22302735,140.84,140.76,21.5939]
[1720875350955,7.43002352,140.83,140.76,21.5939]
[1720875351137,45.0,140.82,140.76,21.5939]
[1720875361078,45.0,140.82,140.76,6.5822]
[1720875361263,45.0,140.82,140.73,21.99]
[1720875361466,3.25968571,140.81,140.73,21.99]
[1720875361766,52.43063015,140.82,140.73,21.99]
[1720875361950,3.25968889,140.81,140.73,21.99]
[1720875362151,52.43063015,140.82,140.73,21.99]
[1720875362451,3.25982289,140.81,140.73,21.99]
[1720875362648,52.43063015,140.82,140.73,21.99]
[1720875362649,10.0,140.78,140.73,21.99]
[1720875362861,45.0,140.77,140.66,15.3902]
[1720875363071,10.0,140.76,140.66,15.3902]
[1720875363276,45.0,140.75,140.66,16.81185188]
[1720875364263,45.0,140.75,140.66,15.3902]
[1720875367685,45.0,140.75,140.66,16.81201826]
[1720875372368,47.7612805,140.75,140.66,16.81201826]
[1720875373090,22.80098232,140.74,140.66,15.3902]
[1720875373286,45.0,140.73,140.66,15.3902]
[1720875373475,45.0,140.73,140.66,16.81192161]
[1720875373676,45.0,140.73,140.66,15.3902]
[1720875374296,55.0,140.73,140.65,6.5998]
[1720875374485,52.43580914,140.73,140.65,6.5998]
[1720875374669,45.0,140.73,140.65,6.5998]
[1720875374869,45.0,140.73,140.66,1.42185187]
[1720875375073,45.0,140.73,140.65,6.5998]
[1720875376398,52.4341707,140.73,140.65,6.5998]
[1720875377474,45.0,140.73,140.66,1.4218551]
[1720875378294,45.0,140.73,140.65,6.5998]
[1720875378484,45.0,140.73,140.66,1.42174745]
[1720875380295,6.0443,140.76,140.66,1.42174745]
[1720875381605,45.0,140.75,140.66,1.42174745]
[1720875383980,45.0,140.75,140.67,15.9034]
[1720875384206,45.0,140.75,140.68,1.42147977]
[1720875384674,21.20704028,140.78,140.68,1.42147977]
[1720875384879,15.3652,140.78,140.68,1.42147977]
[1720875386586,44.9436446,140.77,140.68,1.42147977]
[1720875387184,44.9436446,140.77,140.67,15.9034]
[1720875389386,44.9436446,140.77,140.68,1.42148659]
[1720875390086,44.9436446,140.77,140.67,15.9034]
[1720875394318,10.0,140.76,140.67,15.9034]
[1720875394521,45.0,140.75,140.67,15.9034]
[1720875403416,3.2619244,140.74,140.67,15.9034]
[1720875403717,45.0,140.75,140.67,15.9034]
[1720875404016,3.26194613,140.74,140.67,15.9034]
[1720875404216,45.0,140.75,140.67,15.9034]
[1720875404397,3.2619829,140.74,140.67,15.9034]
[1720875404597,45.0,140.75,140.67,15.9034]
[1720875404913,3.26198371,140.74,140.67,15.9034]
[1720875405120,45.0,140.75,140.67,15.9034]
[1720875405303,3.26151105,140.74,140.68,1.42153147]
[1720875405495,45.0,140.75,140.68,1.42153147]
[1720875405703,31.7301,140.82,140.69,6.2984]
[1720875406022,3.26053642,140.81,140.7,1.4210961]
[1720875406198,31.7301,140.82,140.69,6.2984]
[1720875406199,3.26053642,140.8,140.71,1.42109233]
[1720875406394,31.7301,140.82,140.71,1.42109233]
[1720875406395,3.26053642,140.79,140.71,1.42109233]
[1720875406628,3.26053642,140.78,140.72,17.48745271]
[1720875406816,15.1936,140.82,140.73,6.2984]
[1720875407002,2.83959249,140.81,140.73,6.2984]
[1720875407317,2.83959249,140.8,140.73,6.2984]
[1720875407631,2.83946928,140.79,140.73,6.2984]
[1720875407938,5.50902893,140.84,140.73,6.2984]
[1720875408103,2.83922389,140.83,140.73,6.2984]
[1720875408304,2.83922389,140.82,140.73,6.2984]
[1720875408505,2.83922389,140.81,140.74,1.42071631]
[1720875408712,2.83922389,140.8,140.74,1.42071631]
[1720875408931,2.83922389,140.79,140.74,1.42071631]
[1720875409232,10.0,140.83,140.73,7.71911887]
[1720875409412,2.83951783,140.82,140.73,7.71911887]
[1720875409726,2.83951783,140.81,140.74,1.42093198]
[1720875409926,2.83951783,140.8,140.73,6.2984]
[1720875410130,2.83951783,140.79,140.73,6.2984]
[1720875410424,10.0,140.83,140.73,7.71933514]
[1720875410641,47.83953656,140.82,140.73,7.71933514]
[1720875410935,2.8396259,140.81,140.73,7.71933514]
[1720875411130,45.0,140.82,140.73,7.71933514]
[1720875411131,2.8396259,140.8,140.73,7.71933514]
[1720875411330,45.0,140.82,140.74,1.42093861]
[1720875411331,2.83965984,140.79,140.74,1.42093861]
[1720875411625,45.0,140.82,140.73,6.2984]
[1720875411818,2.83950962,140.81,140.73,6.2984]
[1720875412026,2.83950962,140.8,140.73,6.2984]
[1720875412329,2.83950962,140.79,140.73,6.2984]
[1720875412533,2.83950962,140.81,140.73,6.2984]
[1720875412706,2.83966426,140.8,140.73,6.2984]
[1720875413040,45.0,140.82,140.73,6.2984]
[1720875413205,2.83925609,140.81,140.73,6.2984]
[1720875413406,2.83925609,140.8,140.73,6.2984]
[1720875413621,45.0,140.82,140.73,6.2984]
[1720875413830,2.83927538,140.81,140.73,6.2984]
[1720875414136,45.0,140.82,140.73,6.2984]
[1720875414310,2.83940565,140.81,140.73,6.2984]
[1720875414512,2.83940565,140.8,140.73,6.2984]
[1720875414833,45.0,140.82,140.73,6.2984]
[1720875414834,45.0,140.82,140.74,1.42088709]
[1720875415134,2.83936223,140.81,140.73,6.2984]
[1720875415425,2.83936223,140.8,140.73,6.2984]
[1720875415630,2.83906317,140.81,140.73,6.2984]
[1720875415836,54.01555134,140.85,140.73,6.2984]
[1720875416153,2.83906234,140.84,140.75,15.9584]
[1720875416334,16.5640625,140.87,140.76,6.4459]
[1720875416704,2.83803679,140.86,140.76,6.4459]
[1720875416909,2.83803679,140.85,140.76,6.4459]
[1720875417110,2.83803679,140.84,140.76,7.8665616]
[1720875417333,45.0,140.85,140.76,7.8665616]
[1720875417540,45.0,140.85,140.76,6.4459]
[1720875417715,2.83800183,140.84,140.76,6.4459]
[1720875417916,45.0,140.85,140.76,7.86652401]
[1720875418116,2.83800183,140.84,140.76,7.86652401]
[1720875418318,45.0,140.85,140.76,6.4459]
[1720875419336,2.83814749,140.84,140.76,6.4459]
[1720875419528,76.39,140.85,140.76,6.4459]
[1720875419706,2.83854765,140.84,140.76,6.4459]
[1720875419909,76.39,140.85,140.76,6.4459]
[1720875420113,2.83867384,140.84,140.76,6.4459]
[1720875420443,2.83867384,140.83,140.76,6.4459]
[1720875420738,76.39,140.85,140.76,6.4459]
[1720875420925,24.22882794,140.84,140.76,6.4459]
[1720875421248,47.83929827,140.83,140.76,6.4459]
[1720875421426,2.83929827,140.82,140.76,6.4459]
[1720875421935,45.0,140.83,140.76,6.4459]
[1720875426442,45.0,140.84,140.76,6.4459]
[1720875426625,2.83913004,140.83,140.76,6.4459]
[1720875426827,45.0,140.84,140.76,6.4459]
[1720875427930,76.39,140.84,140.76,6.4459]
[1720875428341,55.0,140.84,140.76,6.4459]
[1720875434361,45.0,140.84,140.76,6.4459]
[1720875434538,45.0,140.85,140.76,6.4459]
[1720875434739,2.83847265,140.84,140.76,6.4459]
[1720875434935,45.0,140.85,140.76,6.4459]
[1720875435135,2.83852903,140.84,140.76,6.4459]
[1720875435428,45.0,140.85,140.76,6.4459]
[1720875435629,2.83841628,140.84,140.76,6.4459]
[1720875435853,45.0,140.85,140.76,6.4459]
[1720875436058,10.0,140.86,140.76,6.4459]
[1720875436235,2.83807765,140.85,140.76,6.4459]
[1720875436563,2.83830286,140.84,140.76,6.4459]
[1720875436730,10.0,140.86,140.76,6.4459]
[1720875436931,2.83807684,140.85,140.76,6.4459]
[1720875437131,31.39,140.86,140.76,6.4459]
[1720875437358,2.83841467,140.85,140.76,6.4459]
[1720875437655,10.0,140.86,140.76,6.4459]
[1720875437858,2.83811518,140.85,140.76,6.4459]
[1720875438171,31.39,140.86,140.76,6.4459]
[1720875438344,10.0,140.84,140.76,6.4459]
[1720875438670,45.0,140.83,140.76,6.4459]
[1720875444142,2.83875806,140.82,140.76,6.4459]
[1720875444354,45.0,140.83,140.76,6.4459]
[1720875444738,2.83875806,140.82,140.76,6.4459]
[1720875444953,45.0,140.83,140.76,6.4459]
[1720875445163,2.83875887,140.82,140.76,6.4459]
[1720875445361,45.0,140.83,140.76,6.4459]
[1720875445541,2.83870092,140.82,140.76,6.4459]
[1720875445751,47.81507282,140.83,140.76,6.4459]
[1720875445935,2.8386446,140.82,140.76,6.4459]
[1720875446141,47.81507282,140.83,140.76,6.4459]
[1720875446360,2.8386446,140.82,140.76,6.4459]
[1720875446559,47.81507282,140.83,140.76,6.4459]
[1720875446764,2.8386446,140.82,140.76,6.4459]
[1720875447069,47.81507282,140.83,140.76,6.4459]
[1720875447255,2.8386446,140.82,140.76,6.4459]
[1720875447651,47.81507282,140.83,140.76,6.4459]
[1720875447850,2.83868187,140.82,140.76,6.4459]
[1720875448065,47.81507282,140.83,140.76,6.4459]
[1720875448366,2.83856678,140.82,140.76,6.4459]
[1720875448547,45.0,140.83,140.76,6.4459]
[1720875448749,2.83853032,140.82,140.76,6.4459]
[1720875448969,45.0,140.83,140.76,6.4459]
[1720875449270,2.83853032,140.82,140.76,6.4459]
[1720875449656,2.83853032,140.81,140.76,6.4459]
[1720875449864,45.0,140.83,140.76,6.4459]
[1720875450072,2.83849386,140.82,140.76,6.4459]
[1720875450262,2.83849386,140.81,140.76,6.4459]
[1720875450454,45.0,140.83,140.76,6.4459]
[1720875450767,2.83853114,140.82,140.76,6.4459]
[1720875450954,2.83853114,140.81,140.76,6.4459]
[1720875451143,2.83853114,140.8,140.76,6.4459]
[1720875451344,45.0,140.83,140.76,6.4459]
[1720875451540,2.83853195,140.82,140.76,6.4459]
[1720875451772,2.83853195,140.81,140.76,6.4459]
[1720875452070,2.83853195,140.8,140.76,6.4459]
[1720875452270,45.0,140.83,140.76,6.4459]
[1720875452458,2.83864623,140.82,140.76,6.4459]
[1720875452652,2.83864623,140.81,140.76,6.4459]
[1720875452845,2.83864623,140.8,140.76,6.4459]
[1720875453047,45.0,140.83,140.76,6.4459]
[1720875453249,2.83864378,140.82,140.76,6.4459]
[1720875453448,2.83864378,140.81,140.76,6.4459]
[1720875453771,2.83864378,140.8,140.76,6.4459]
[1720875454075,45.0,140.83,140.76,6.4459]
[1720875454258,2.83853195,140.82,140.76,6.4459]
[1720875454571,2.83853032,140.81,140.76,6.4459]
[1720875454871,2.83853114,140.8,140.76,6.4459]
[1720875455057,45.0,140.83,140.76,6.4459]
[1720875455247,2.83853195,140.82,140.76,6.4459]
[1720875455448,2.83853195,140.81,140.76,6.4459]
[1720875455752,2.83853195,140.8,140.76,6.4459]
[1720875455948,2.83853195,140.82,140.76,6.4459]
[1720875457457,2.83853032,140.81,140.76,6.4459]
[1720875457664,2.83853114,140.8,140.76,6.4459]
[1720875457971,2.83853114,140.79,140.76,6.4459]
[1720875458182,45.0,140.83,140.76,6.4459]
[1720875458464,2.83857004,140.82,140.76,6.4459]
[1720875458655,2.83857004,140.81,140.76,6.4459]
[1720875458860,2.83857004,140.8,140.76,6.4459]
[1720875459067,2.83857004,140.79,140.76,6.4459]
[1720875459267,45.0,140.83,140.76,6.4459]
[1720875459577,2.83853334,140.82,140.76,6.4459]
[1720875459871,2.83853334,140.81,140.76,6.4459]
[1720875460176,2.83853334,140.8,140.76,6.4459]
[1720875460465,2.83853334,140.79,140.76,6.4459]
[1720875460681,45.0,140.83,140.76,6.4459]
[1720875460853,2.83853334,140.82,140.76,6.4459]
[1720875461049,45.0,140.83,140.76,6.4459]
[1720875461254,2.83853008,140.82,140.76,6.4459]
[1720875461467,2.83853008,140.81,140.76,6.4459]
[1720875461778,2.83853008,140.8,140.76,6.4459]
[1720875461979,2.83853008,140.82,140.76,6.4459]
[1720875464574,2.83849362,140.81,140.76,6.4459]
[1720875464773,2.83849362,140.8,140.76,6.4459]
[1720875464976,45.0,140.83,140.76,6.4459]
[1720875465158,2.83847407,140.79,140.76,6.4459]
[1720875465367,45.0,140.83,140.76,6.4459]
[1720875465566,2.83847489,140.82,140.76,6.4459]
[1720875465877,2.83847489,140.81,140.76,6.4459]
[1720875466178,2.83847489,140.8,140.76,6.4459]
[1720875466366,2.83847489,140.79,140.76,6.4459]
[1720875466560,2.83847489,140.82,140.76,6.4459]
[1720875466783,2.83850972,140.81,140.76,6.4459]
[1720875466977,2.83850972,140.8,140.76,6.4459]
[1720875467178,2.83850972,140.79,140.76,6.4459]
[1720875467386,2.83850972,140.82,140.76,6.4459]
[1720875467562,2.83851217,140.81,140.76,6.4459]
[1720875467763,2.83851217,140.8,140.76,6.4459]
[1720875467977,2.8386468,140.79,140.76,6.4459]
[1720875468288,2.8386468,140.78,140.76,6.4459]
[1720875468489,2.8386468,140.82,140.76,6.4459]
[1720875468666,2.83864517,140.81,140.76,6.4459]
[1720875468982,45.0,140.83,140.76,6.4459]
[1720875468983,2.83864517,140.8,140.76,6.4459]
[1720875469173,2.83864517,140.82,140.76,6.4459]
[1720875471285,45.0,140.83,140.76,6.4459]
[1720875471664,2.83877755,140.82,140.76,6.4459]
[1720875471865,2.83877755,140.81,140.76,6.4459]
[1720875472066,2.83877755,140.82,140.76,6.4459]
[1720875472257,2.83877755,140.81,140.76,6.4459]
[1720875472460,2.83877755,140.8,140.76,6.4459]
[1720875472662,2.83877755,140.79,140.76,6.4459]
[1720875472856,2.83877755,140.78,140.76,6.4459]
[1720875473075,45.0,140.83,140.76,6.4459]
[1720875473260,2.83875025,140.82,140.76,6.4459]
[1720875473457,2.83875107,140.81,140.76,6.4459]
[1720875473657,45.0,140.83,140.76,6.4459]
[1720875473658,2.83875107,140.8,140.76,6.4459]
[1720875473884,2.83875107,140.82,140.76,6.4459]
[1720875474657,12.83875107,140.82,140.75,15.9584]
[1720875474861,47.83875107,140.81,140.72,6.6036]
[1720875475164,12.84008195,140.8,140.72,6.6036]
[1720875475387,45.0,140.79,140.72,6.6036]
[1720875475686,2.84043839,140.78,140.72,6.6036]
[1720875476500,2.84043839,140.78,140.71,16.2339]
[1720875477576,12.84043839,140.78,140.71,16.2339]
[1720875477893,47.84043839,140.77,140.71,16.2339]
[1720875478184,45.0,140.77,140.71,16.2339]
[1720875478391,2.84116101,140.76,140.71,16.2339]
[1720875478686,2.84116101,140.75,140.71,16.2339]
[1720875478867,2.84116101,140.76,140.71,16.2339]
[1720875479281,34.23116101,140.76,140.65,6.6036]
[1720875479487,47.84116101,140.75,140.65,6.6036]
[1720875479669,2.84116101,140.74,140.65,6.6036]
[1720875481086,16.1868,140.72,140.65,6.6036]
[1720875481393,45.0,140.71,140.65,6.6036]
[1720875491220,47.81377418,140.71,140.65,6.6036]
[1720875494885,57.81377418,140.71,140.65,6.6036]
[1720875496213,57.81377418,140.71,140.64,16.2339]
[1720875500914,47.81377418,140.71,140.64,16.2339]
[1720875501217,45.0,140.7,140.64,16.2339]
[1720875501516,45.0,140.72,140.64,16.2339]
[1720875507215,10.0,140.71,140.64,16.2339]
[1720875507411,45.0,140.7,140.64,16.2339]
[1720875510529,45.0,140.7,140.62,6.5062]
[1720875513925,66.39,140.7,140.62,6.5062]
[1720875514336,10.0,140.69,140.62,6.5062]
[1720875514639,45.0,140.68,140.62,6.5062]
[1720875523727,10.0,140.67,140.62,6.5062]
[1720875523927,45.0,140.66,140.62,6.5062]
[1720875527232,45.0,140.66,140.61,16.1331]
[1720875529040,2.84538152,140.65,140.61,16.1331]
[1720875529237,45.0,140.66,140.61,16.1331]
[1720875529440,2.84554639,140.65,140.61,16.1331]
[1720875529623,45.0,140.66,140.61,16.1331]
[1720875529830,2.84568119,140.65,140.61,16.1331]
[1720875530145,45.0,140.66,140.61,16.1331]
[1720875530311,2.84568119,140.65,140.61,16.1331]
[1720875530510,45.0,140.66,140.61,16.1331]
[1720875530709,2.84568119,140.65,140.61,16.1331]
[1720875530956,45.0,140.66,140.61,16.1331]
[1720875531122,2.84568119,140.65,140.61,16.1331]
[1720875531447,45.0,140.66,140.61,16.1331]
[1720875531628,2.84553176,140.65,140.61,16.1331]
[1720875531945,45.0,140.66,140.61,16.1331]
[1720875532120,2.84538152,140.65,140.61,16.1331]
[1720875532321,45.0,140.66,140.61,16.1331]
[1720875532519,2.84553176,140.65,140.61,16.1331]
[1720875532743,45.0,140.66,140.61,16.1331]
[1720875533040,2.84553176,140.65,140.61,16.1331]
[1720875533243,45.0,140.66,140.61,16.1331]
[1720875533849,2.84549889,140.65,140.61,16.1331]
[1720875534221,10.0,140.65,140.58,22.4485]
[1720875534442,45.0,140.64,140.58,22.4485]
[1720875534638,45.0,140.64,140.59,1.4226881]
[1720875538649,12.78459955,140.68,140.58,22.4485]
[1720875538833,47.84497899,140.67,140.59,1.42233633]
[1720875539038,45.0,140.67,140.59,1.42233633]
[1720875540461,54.91202149,140.7,140.59,1.42233633]
[1720875540634,2.84418472,140.69,140.62,6.1835]
[1720875540842,37.34857639,140.73,140.63,1.42193675]
[1720875541149,2.84363504,140.72,140.63,1.42193675]
[1720875541337,2.84363504,140.71,140.63,1.42193675]
[1720875541534,2.84350346,140.7,140.64,16.265]
[1720875541739,32.90368078,140.74,140.65,1.42177734]
[1720875542052,2.84338737,140.73,140.65,1.42177734]
[1720875542354,2.84338737,140.72,140.65,1.42177734]
[1720875542522,32.90368078,140.74,140.65,1.42177734]
[1720875542523,2.84338737,140.73,140.65,1.42177734]
[1720875542923,47.84338737,140.73,140.65,1.42177734]
[1720875543156,2.84338737,140.72,140.66,6.1835]
[1720875543335,47.84338737,140.72,140.66,6.1835]
[1720875543538,2.84338737,140.71,140.66,6.1835]
[1720875543759,47.84338737,140.71,140.66,6.1835]
[1720875543933,2.84338737,140.7,140.66,6.1835]
[1720875544237,47.84338737,140.7,140.66,6.1835]
[1720875544563,45.0,140.7,140.66,6.1835]
[1720875547151,2.78349237,140.74,140.66,6.1835]
[1720875547353,2.84335217,140.73,140.66,6.1835]
[1720875547565,2.84335217,140.72,140.66,6.1835]
[1720875548057,2.84335217,140.71,140.66,6.1835]
[1720875548253,7.43792885,140.74,140.66,6.1835]
[1720875548459,57.84338868,140.73,140.66,6.1835]
[1720875548644,55.0,140.73,140.66,6.1835]
[1720875548845,2.84338763,140.72,140.66,6.1835]
[1720875549154,2.84338763,140.71,140.66,6.1835]
[1720875549460,2.84338763,140.7,140.66,6.1835]
[1720875549669,2.84338763,140.72,140.66,6.1835]
[1720875551560,55.0,140.73,140.66,6.1835]
[1720875551869,2.84335112,140.72,140.66,6.1835]
[1720875552040,2.84335112,140.71,140.66,6.1835]
[1720875552248,2.84335112,140.72,140.66,6.1835]
[1720875552864,2.84335112,140.72,140.64,16.265]
[1720875558383,92.2272,140.73,140.64,16.265]
[1720875558595,2.84339008,140.72,140.64,16.265]
[1720875558886,2.84339008,140.71,140.64,16.265]
[1720875559052,2.84339008,140.7,140.64,16.265]
[1720875559257,92.2272,140.73,140.64,16.265]
[1720875559464,2.84335439,140.72,140.64,16.265]
[1720875559668,2.84335439,140.71,140.64,16.265]
[1720875559880,47.84335439,140.71,140.64,16.265]
[1720875560047,2.84335439,140.7,140.64,16.265]
[1720875560252,79.23335439,140.7,140.64,16.265]
[1720875560454,2.84335439,140.69,140.64,16.265]
[1720875560683,47.84335439,140.69,140.64,16.265]
[1720875560890,2.84335439,140.68,140.64,16.265]
[1720875561055,47.84335439,140.68,140.64,16.265]
[1720875561377,2.84335439,140.67,140.64,16.265]
[1720875561563,47.84335439,140.67,140.64,16.265]
[1720875561879,45.0,140.67,140.64,16.265]
[1720875564478,15.8372,140.73,140.64,16.265]
[1720875564690,2.84432394,140.72,140.64,16.265]
[1720875564993,2.84432394,140.71,140.64,16.265]
[1720875565282,2.84401934,140.7,140.64,16.265]
[1720875565479,2.84401934,140.69,140.64,16.265]
[1720875565690,2.84401934,140.72,140.64,16.265]
[1720875565892,2.84401934,140.71,140.64,16.265]
[1720875566057,2.84401934,140.7,140.64,16.265]
[1720875566265,2.84401934,140.69,140.64,16.265]
[1720875566592,45.0,140.7,140.64,16.265]
[1720875566771,2.84396426,140.69,140.64,16.265]
[1720875566962,45.0,140.7,140.64,16.265]
[1720875567168,2.84396426,140.69,140.64,16.265]
[1720875567481,45.0,140.7,140.64,16.265]
[1720875567689,2.84396426,140.69,140.64,16.265]
[1720875567881,45.0,140.7,140.64,16.265]
[1720875568062,2.84396508,140.69,140.64,16.265]
[1720875568262,45.0,140.7,140.64,16.265]
[1720875568471,2.84396508,140.69,140.64,16.265]
[1720875568683,45.0,140.71,140.64,16.265]